{"text_format":"1","workbook":"xlsx","n_sheets":6,"sheets":["home","bloemkool","boerenkool","broccoli","chinese kool","bestelling"],"not_rendered":{"charts":0,"images":46,"macros":1,"external_links":0,"defined_names":1,"comments":0,"pivot_tables":0},"unopened":[],"bounds":{"document_bytes":16777216,"sheet_cells":100000,"rows_first":2000,"rows_last":500,"rows_between":2000,"halvings":0,"cell_chars":16384,"cell_head_chars":4096},"cells_cut":0,"cells_raw":0,"read":"whole","date_system":"1900"}

{"sheet":"home","index":0,"n_rows":36,"n_cols":10,"rows_kept":36,"cut":false,"hidden":false,"merged":[[16,1,18,8]]}
[]
[]
[]
[]
[]
[]
[]
[]
[]
[]
[]
[]
[]
[]
[null,"Onze groenterassen"]
[]
[null,"In onderstaand schema vindt u per gewas ons rassenassortiment. Van deze rassen leveren wij gangbaar geteeld zaad, waarvan een groot deel ook in de productvorm 'niet-chemisch behandeld'. Voor informatie over onze minimale volumes, zie kleinste verpakkingseenheden."]
[]
[]
[null,null,null,{"$f":"IFERROR(HYPERLINK(OnMouseOver(\"bejologo\",,),\"\"), \"\")","v":""},{"$f":"IFERROR(HYPERLINK(OnMouseOver(\"bejologo\",,),\"\"), \"\")","v":""},{"$f":"IFERROR(HYPERLINK(OnMouseOver(\"bejologo\",,),\"\"), \"\")","v":""},{"$f":"IFERROR(HYPERLINK(OnMouseOver(\"bejologo\",,),\"\"), \"\")","v":""},{"$f":"IFERROR(HYPERLINK(OnMouseOver(\"bejologo\",,),\"\"), \"\")","v":""},{"$f":"IFERROR(HYPERLINK(OnMouseOver(\"bejologo\",,),\"\"), \"\")","v":""},{"$f":"IFERROR(HYPERLINK(OnMouseOver(\"bejologo\",,),\"\"), \"\")","v":""}]
[null,null,null,{"$f":"IFERROR(HYPERLINK(OnMouseOver(\"bejologo\",,),\"\"), \"\")","v":""},{"$f":"IFERROR(HYPERLINK(OnMouseOver(\"Andijvie\",1,1),\"Andijvie\"), \"Andijvie\")","v":"Andijvie"},{"$f":"IFERROR(HYPERLINK(OnMouseOver(\"bejologo\",,),\"\"), \"\")","v":""},{"$f":"IFERROR(HYPERLINK(OnMouseOver(\"Pastinaak\",3,1),\"Pastinaak\"), \"Pastinaak\")","v":"Pastinaak"},{"$f":"IFERROR(HYPERLINK(OnMouseOver(\"bejologo\",,),\"\"), \"\")","v":""},{"$f":"IFERROR(HYPERLINK(OnMouseOver(\"Snijselderij\",5,1),\"Snijselderij\"), \"Snijselderij\")","v":"Snijselderij"},{"$f":"IFERROR(HYPERLINK(OnMouseOver(\"bejologo\",,),\"\"), \"\")","v":""}]
[null,null,null,{"$f":"IFERROR(HYPERLINK(OnMouseOver(\"bejologo\",,),\"\"), \"\")","v":""},{"$f":"IFERROR(HYPERLINK(OnMouseOver(\"Asperge\",1,2),\"Asperge\"), \"Asperge\")","v":"Asperge"},{"$f":"IFERROR(HYPERLINK(OnMouseOver(\"bejologo\",,),\"\"), \"\")","v":""},{"$f":"IFERROR(HYPERLINK(OnMouseOver(\"Peterselie\",3,2),\"Peterselie\"), \"Peterselie\")","v":"Peterselie"},{"$f":"IFERROR(HYPERLINK(OnMouseOver(\"bejologo\",,),\"\"), \"\")","v":""},{"$f":"IFERROR(HYPERLINK(OnMouseOver(\"Spitskool\",5,2),\"Spitskool\"), \"Spitskool\")","v":"Spitskool"},{"$f":"IFERROR(HYPERLINK(OnMouseOver(\"bejologo\",,),\"\"), \"\")","v":""}]
[null,null,null,{"$f":"IFERROR(HYPERLINK(OnMouseOver(\"bejologo\",,),\"\"), \"\")","v":""},{"$f":"IFERROR(HYPERLINK(OnMouseOver(\"Bleekselderij\",1,3),\"Bleekselderij\"), \"Bleekselderij\")","v":"Bleekselderij"},{"$f":"IFERROR(HYPERLINK(OnMouseOver(\"bejologo\",,),\"\"), \"\")","v":""},{"$f":"IFERROR(HYPERLINK(OnMouseOver(\"Plantuien\",3,3),\"Plantuien\"), \"Plantuien\")","v":"Plantuien"},{"$f":"IFERROR(HYPERLINK(OnMouseOver(\"bejologo\",,),\"\"), \"\")","v":""},{"$f":"IFERROR(HYPERLINK(OnMouseOver(\"Spruitkool\",5,3),\"Spruitkool\"), \"Spruitkool\")","v":"Spruitkool"},{"$f":"IFERROR(HYPERLINK(OnMouseOver(\"bejologo\",,),\"\"), \"\")","v":""}]
[null,null,null,{"$f":"IFERROR(HYPERLINK(OnMouseOver(\"bejologo\",,),\"\"), \"\")","v":""},{"$f":"IFERROR(HYPERLINK(OnMouseOver(\"Bloemkool\",1,4),\"Bloemkool\"), \"Bloemkool\")","v":"Bloemkool"},{"$f":"IFERROR(HYPERLINK(OnMouseOver(\"bejologo\",,),\"\"), \"\")","v":""},{"$f":"IFERROR(HYPERLINK(OnMouseOver(\"Prei\",3,4),\"Prei\"), \"Prei\")","v":"Prei"},{"$f":"IFERROR(HYPERLINK(OnMouseOver(\"bejologo\",,),\"\"), \"\")","v":""},{"$f":"IFERROR(HYPERLINK(OnMouseOver(\"Stengelui\",5,4),\"Stengelui\"), \"Stengelui\")","v":"Stengelui"},{"$f":"IFERROR(HYPERLINK(OnMouseOver(\"bejologo\",,),\"\"), \"\")","v":""}]
[null,null,null,{"$f":"IFERROR(HYPERLINK(OnMouseOver(\"bejologo\",,),\"\"), \"\")","v":""},{"$f":"IFERROR(HYPERLINK(OnMouseOver(\"Bloemkool-Winter\",1,5),\"Bloemkool-Winter\"), \"Bloemkool-Winter\")","v":"Bloemkool-Winter"},{"$f":"IFERROR(HYPERLINK(OnMouseOver(\"bejologo\",,),\"\"), \"\")","v":""},{"$f":"IFERROR(HYPERLINK(OnMouseOver(\"Radicchio rosso\",3,5),\"Radicchio rosso\"), \"Radicchio rosso\")","v":"Radicchio rosso"},{"$f":"IFERROR(HYPERLINK(OnMouseOver(\"bejologo\",,),\"\"), \"\")","v":""},{"$f":"IFERROR(HYPERLINK(OnMouseOver(\"Treviso\",5,5),\"Treviso\"), \"Treviso\")","v":"Treviso"},{"$f":"IFERROR(HYPERLINK(OnMouseOver(\"bejologo\",,),\"\"), \"\")","v":""}]
[null,null,null,{"$f":"IFERROR(HYPERLINK(OnMouseOver(\"bejologo\",,),\"\"), \"\")","v":""},{"$f":"IFERROR(HYPERLINK(OnMouseOver(\"Boerenkool\",1,6),\"Boerenkool\"), \"Boerenkool\")","v":"Boerenkool"},{"$f":"IFERROR(HYPERLINK(OnMouseOver(\"bejologo\",,),\"\"), \"\")","v":""},{"$f":"IFERROR(HYPERLINK(OnMouseOver(\"Radijs\",3,6),\"Radijs\"), \"Radijs\")","v":"Radijs"},{"$f":"IFERROR(HYPERLINK(OnMouseOver(\"bejologo\",,),\"\"), \"\")","v":""},{"$f":"IFERROR(HYPERLINK(OnMouseOver(\"Uien geel\",5,6),\"Uien geel\"), \"Uien geel\")","v":"Uien geel"},{"$f":"IFERROR(HYPERLINK(OnMouseOver(\"bejologo\",,),\"\"), \"\")","v":""}]
[null,null,null,{"$f":"IFERROR(HYPERLINK(OnMouseOver(\"bejologo\",,),\"\"), \"\")","v":""},{"$f":"IFERROR(HYPERLINK(OnMouseOver(\"Broccoli\",1,7),\"Broccoli\"), \"Broccoli\")","v":"Broccoli"},{"$f":"IFERROR(HYPERLINK(OnMouseOver(\"bejologo\",,),\"\"), \"\")","v":""},{"$f":"IFERROR(HYPERLINK(OnMouseOver(\"Rode bieten\",3,7),\"Rode bieten\"), \"Rode bieten\")","v":"Rode bieten"},{"$f":"IFERROR(HYPERLINK(OnMouseOver(\"bejologo\",,),\"\"), \"\")","v":""},{"$f":"IFERROR(HYPERLINK(OnMouseOver(\"Uien rood\",5,7),\"Uien rood\"), \"Uien rood\")","v":"Uien rood"},{"$f":"IFERROR(HYPERLINK(OnMouseOver(\"bejologo\",,),\"\"), \"\")","v":""}]
[null,null,null,{"$f":"IFERROR(HYPERLINK(OnMouseOver(\"bejologo\",,),\"\"), \"\")","v":""},{"$f":"IFERROR(HYPERLINK(OnMouseOver(\"Chinese kool\",1,8),\"Chinese kool\"), \"Chinese kool\")","v":"Chinese kool"},{"$f":"IFERROR(HYPERLINK(OnMouseOver(\"bejologo\",,),\"\"), \"\")","v":""},{"$f":"IFERROR(HYPERLINK(OnMouseOver(\"Rode kool\",3,8),\"Rode kool\"), \"Rode kool\")","v":"Rode kool"},{"$f":"IFERROR(HYPERLINK(OnMouseOver(\"bejologo\",,),\"\"), \"\")","v":""},{"$f":"IFERROR(HYPERLINK(OnMouseOver(\"Uien wit\",5,8),\"Uien wit\"), \"Uien wit\")","v":"Uien wit"},{"$f":"IFERROR(HYPERLINK(OnMouseOver(\"bejologo\",,),\"\"), \"\")","v":""}]
[null,null,null,{"$f":"IFERROR(HYPERLINK(OnMouseOver(\"bejologo\",,),\"\"), \"\")","v":""},{"$f":"IFERROR(HYPERLINK(OnMouseOver(\"Groenlof\",1,9),\"Groenlof\"), \"Groenlof\")","v":"Groenlof"},{"$f":"IFERROR(HYPERLINK(OnMouseOver(\"bejologo\",,),\"\"), \"\")","v":""},{"$f":"IFERROR(HYPERLINK(OnMouseOver(\"Romanesco\",3,9),\"Romanesco\"), \"Romanesco\")","v":"Romanesco"},{"$f":"IFERROR(HYPERLINK(OnMouseOver(\"bejologo\",,),\"\"), \"\")","v":""},{"$f":"IFERROR(HYPERLINK(OnMouseOver(\"Venkel\",5,9),\"Venkel\"), \"Venkel\")","v":"Venkel"},{"$f":"IFERROR(HYPERLINK(OnMouseOver(\"bejologo\",,),\"\"), \"\")","v":""}]
[null,null,null,{"$f":"IFERROR(HYPERLINK(OnMouseOver(\"bejologo\",,),\"\"), \"\")","v":""},{"$f":"IFERROR(HYPERLINK(OnMouseOver(\"Kleurenbieten\",1,10),\"Kleurenbieten\"), \"Kleurenbieten\")","v":"Kleurenbieten"},{"$f":"IFERROR(HYPERLINK(OnMouseOver(\"bejologo\",,),\"\"), \"\")","v":""},{"$f":"IFERROR(HYPERLINK(OnMouseOver(\"Savooiekool\",3,10),\"Savooiekool\"), \"Savooiekool\")","v":"Savooiekool"},{"$f":"IFERROR(HYPERLINK(OnMouseOver(\"bejologo\",,),\"\"), \"\")","v":""},{"$f":"IFERROR(HYPERLINK(OnMouseOver(\"Winterkool\",5,10),\"Winterkool\"), \"Winterkool\")","v":"Winterkool"},{"$f":"IFERROR(HYPERLINK(OnMouseOver(\"bejologo\",,),\"\"), \"\")","v":""}]
[null,null,null,{"$f":"IFERROR(HYPERLINK(OnMouseOver(\"bejologo\",,),\"\"), \"\")","v":""},{"$f":"IFERROR(HYPERLINK(OnMouseOver(\"Knolselderij\",1,11),\"Knolselderij\"), \"Knolselderij\")","v":"Knolselderij"},{"$f":"IFERROR(HYPERLINK(OnMouseOver(\"bejologo\",,),\"\"), \"\")","v":""},{"$f":"IFERROR(HYPERLINK(OnMouseOver(\"Scheutjesbroccoli\",3,11),\"Scheutjesbroccoli\"), \"Scheutjesbroccoli\")","v":"Scheutjesbroccoli"},{"$f":"IFERROR(HYPERLINK(OnMouseOver(\"bejologo\",,),\"\"), \"\")","v":""},{"$f":"IFERROR(HYPERLINK(OnMouseOver(\"Witte kool\",5,11),\"Witte kool\"), \"Witte kool\")","v":"Witte kool"},{"$f":"IFERROR(HYPERLINK(OnMouseOver(\"bejologo\",,),\"\"), \"\")","v":""}]
[null,null,null,{"$f":"IFERROR(HYPERLINK(OnMouseOver(\"bejologo\",,),\"\"), \"\")","v":""},{"$f":"IFERROR(HYPERLINK(OnMouseOver(\"Koolrabi\",1,12),\"Koolrabi\"), \"Koolrabi\")","v":"Koolrabi"},{"$f":"IFERROR(HYPERLINK(OnMouseOver(\"bejologo\",,),\"\"), \"\")","v":""},{"$f":"IFERROR(HYPERLINK(OnMouseOver(\"Sierkool\",3,12),\"Sierkool\"), \"Sierkool\")","v":"Sierkool"},{"$f":"IFERROR(HYPERLINK(OnMouseOver(\"bejologo\",,),\"\"), \"\")","v":""},{"$f":"IFERROR(HYPERLINK(OnMouseOver(\"Wortelen\",5,12),\"Wortelen\"), \"Wortelen\")","v":"Wortelen"},{"$f":"IFERROR(HYPERLINK(OnMouseOver(\"bejologo\",,),\"\"), \"\")","v":""}]
[null,null,null,{"$f":"IFERROR(HYPERLINK(OnMouseOver(\"bejologo\",,),\"\"), \"\")","v":""},{"$f":"IFERROR(HYPERLINK(OnMouseOver(\"Koolrapen\",1,13),\"Koolrapen\"), \"Koolrapen\")","v":"Koolrapen"},{"$f":"IFERROR(HYPERLINK(OnMouseOver(\"bejologo\",,),\"\"), \"\")","v":""},{"$f":"IFERROR(HYPERLINK(OnMouseOver(\"Sjalotten\",3,13),\"Sjalotten\"), \"Sjalotten\")","v":"Sjalotten"},{"$f":"IFERROR(HYPERLINK(OnMouseOver(\"bejologo\",,),\"\"), \"\")","v":""},{"$f":"IFERROR(HYPERLINK(OnMouseOver(\"Wortelpeterselie\",5,13),\"Wortelpeterselie\"), \"Wortelpeterselie\")","v":"Wortelpeterselie"},{"$f":"IFERROR(HYPERLINK(OnMouseOver(\"bejologo\",,),\"\"), \"\")","v":""}]
[null,null,null,{"$f":"IFERROR(HYPERLINK(OnMouseOver(\"bejologo\",,),\"\"), \"\")","v":""},{"$f":"IFERROR(HYPERLINK(OnMouseOver(\"Paksoi\",1,14),\"Paksoi\"), \"Paksoi\")","v":"Paksoi"},{"$f":"IFERROR(HYPERLINK(OnMouseOver(\"bejologo\",,),\"\"), \"\")","v":""},{"$f":"IFERROR(HYPERLINK(OnMouseOver(\"Snijbiet\",3,14),\"Snijbiet\"), \"Snijbiet\")","v":"Snijbiet"},{"$f":"IFERROR(HYPERLINK(OnMouseOver(\"bejologo\",,),\"\"), \"\")","v":""},{"$f":"IFERROR(HYPERLINK(OnMouseOver(\"bejologo\",,),\"\"), \"\")","v":""},{"$f":"IFERROR(HYPERLINK(OnMouseOver(\"bejologo\",,),\"\"), \"\")","v":""}]
[null,null,null,{"$f":"IFERROR(HYPERLINK(OnMouseOver(\"bejologo\",,),\"\"), \"\")","v":""},{"$f":"IFERROR(HYPERLINK(OnMouseOver(\"bejologo\",,),\"\"), \"\")","v":""},{"$f":"IFERROR(HYPERLINK(OnMouseOver(\"bejologo\",,),\"\"), \"\")","v":""},{"$f":"IFERROR(HYPERLINK(OnMouseOver(\"bejologo\",,),\"\"), \"\")","v":""},{"$f":"IFERROR(HYPERLINK(OnMouseOver(\"bejologo\",,),\"\"), \"\")","v":""},{"$f":"IFERROR(HYPERLINK(OnMouseOver(\"bejologo\",,),\"\"), \"\")","v":""},{"$f":"IFERROR(HYPERLINK(OnMouseOver(\"bejologo\",,),\"\"), \"\")","v":""}]
[null,null,null,null,"Dubbelklik op de naam voor meer informatie over die groente."]

{"sheet":"bloemkool","index":1,"n_rows":31,"n_cols":25,"rows_kept":31,"cut":false,"hidden":false,"merged":[[18,4,21,10],[16,7,16,10]]}
[null,null,null,null,null,null,null,null,null,null,null,null,null,null,null,null,null,null,null,null,null,null,null,"Balboa","● voor middellate herfstteelt "]
[null,null,null,null,null,null,null,null,null,null,null,null,null,null,null,null,null,null,null,null,null,null,null,"Balboa","● snelgroeiend vitaal gewas met goede zelfdekbaarheid"]
[null,null,null,null,null,null,null,null,null,null,null,null,null,null,null,null,null,null,null,null,null,null,null,"Balboa","● zeer vaste en witte kool"]
[null,null,null,null,null,null,null,null,null,null,null,null,null,null,null,null,null,null,null,null,null,null,null,"Balboa","● sterk tegen schift"]
[null,null,null,null,null,null,null,null,null,null,null,null,null,null,null,null,null,null,null,null,null,null,null,"Balboa","● makkelijk oogstbare kool met een hoog soortelijk gewicht"]
[null,null,null,null,null,null,null,null,null,null,null,null,null,null,null,null,null,null,null,null,null,null,null,"Balboa","● vaste roosjes met een korte steel"]
[null,null,null,null,null,null,null,null,null,null,null,null,null,null,null,null,null,null,null,null,null,null,null,"Balboa","● voor verse markt en industrie"]
[null,null,null,null,null,null,null,null,null,null,null,null,null,null,null,null,null,null,null,null,null,null,null,"Balboa","● biologisch"]
[null,null,null,null,null,null,null,null,null,null,null,null,null,null,null,null,null,null,null,null,null,null,null,"Belot","● zeer late herfstbloemkool"]
[null,null,null,null,null,null,null,null,null,null,null,null,null,null,null,null,null,null,null,null,null,null,null,"Belot","● blijft goed staan op het veld, ook in koudere periodes "]
[null,null,null,null,null,null,null,null,null,null,null,null,null,null,null,null,null,null,null,null,null,null,null,"Belot","● zeer opstaand, fors gewas "]
[null,null,null,null,null,null,null,null,null,null,null,null,null,null,null,null,null,null,null,null,null,null,null,"Belot","● fors gewas en veel blad om de kool"]
[null,null,null,null,null,null,null,null,null,null,null,null,null,null,null,null,null,null,null,null,null,null,null,"Belot","● mooie koolkwaliteit"]
[null,null,null,null,null,null,null,null,null,null,null,null,null,null,null,null,null,null,null,null,null,null,null,"Belot","● plantperiode: eind juni, begin juli"]
[null,"Bloemkool",null,null,null,null,null,null,null,null,null,null,null,null,null,null,null,null,null,null,null,null,null,"Belot","● vroegheid: ongeveer 135-150 dagen na uitplanten"]
[null,null,null,null,null,null,null,null,null,null,null,null,null,null,null,null,null,null,null,null,null,null,null,"Belot","● biologisch"]
[null,null,null,null,"Gewasinformatie",null,null,null,null,null,null,null,null,null,null,null,null,null,null,null,null,null,null,"Goodman","● vroege bloemkool voor de zomerteelt"]
[null,null,null,null,null,null,null,null,null,null,null,null,null,null,null,null,null,null,null,null,null,null,null,"Goodman","● groeikrachtig gewas"]
[null,null,null,null,"Bejo heeft bloemkoolrassen voor de teelt van vroeg tot laat en voor uiteenlopende gebruiksdoeleinden. We testen onze rassen in alle veelvoorkomende klimaatcondities. Bloemkool is in veel landen een echte traditionele groente. Het wordt veel als vers product verkocht, maar is ook prima geschikt voor industriële doeleinden. In de supermarkt krijgt ook minibloemkool steeds meer bekendheid.",null,null,null,null,null,null,null,null,null,null,null,null,null,null,null,null,null,null,"Goodman","● vaste roosjes van hoge kwaliteit"]
[null,null,null,null,null,null,null,null,null,null,null,null,null,null,null,null,null,null,null,null,null,null,null,"Goodman","● goede zelfdekbaarheid"]
[null,null,null,null,null,null,null,null,null,null,null,null,null,null,null,null,null,null,null,null,null,null,null,"Goodman","● opstaand donker blad "]
[null,null,null,null,null,null,null,null,null,null,null,null,null,null,null,null,null,null,null,null,null,null,null,"Goodman","● oogst; ongeveer 80 dagen na planten"]
[null,null,null,null,null,null,null,null,null,null,null,null,null,null,null,null,null,null,null,null,null,null,null,"Goodman","● biologisch"]
[null,null,null,null,"Ras","Oogstweek","Groeidagen","Plantweek ",null,null,null,null,null,null,null,null,null,null,null,null,null,null,null,"Skywalker","● bloemkool voor zomer- en herfstteelt"]
[null,null,null,null,"Balboa","vanaf week 41","ca. 100","28-30",null,null,null,null,null,null,null,null,null,null,null,null,null,null,null,"Skywalker","● zeer groeikrachtig"]
[null,null,null,null,"Belot","vanaf week 15","ca. 142","26-28",null,null,null,null,null,null,null,null,null,null,null,null,null,null,null,"Skywalker","● zeer vaste roosjes"]
[null,null,null,null,"Goodman","vanaf week 27","ca. 80","16-25",null,null,null,null,null,null,null,null,null,null,null,null,null,null,null,"Skywalker","● goede zelfdekbaarheid"]
[null,null,null,null,"Skywalker","vanaf week 43","ca. 96","28-30",null,null,null,null,null,null,null,null,null,null,null,null,null,null,null,"Skywalker","● biologisch"]
[]
[]
[null,null,null,null,"Klik op de naam voor meer informatie; je kunt dan ook een bestelling plaatsen."]

{"sheet":"boerenkool","index":2,"n_rows":31,"n_cols":25,"rows_kept":31,"cut":false,"hidden":false,"merged":[[18,4,20,10],[23,6,24,6],[23,7,24,7],[16,7,16,10]]}
[null,null,null,null,null,null,null,null,null,null,null,null,null,null,null,null,null,null,null,null,null,null,null,"Ripbor","● alleen beschikbaar als biologisch zaad "]
[null,null,null,null,null,null,null,null,null,null,null,null,null,null,null,null,null,null,null,null,null,null,null,"Ripbor","● voor herfst- en winterteelt"]
[null,null,null,null,null,null,null,null,null,null,null,null,null,null,null,null,null,null,null,null,null,null,null,"Ripbor","● fors, donkergroen gewas"]
[null,null,null,null,null,null,null,null,null,null,null,null,null,null,null,null,null,null,null,null,null,null,null,"Ripbor","● sterk op sleet"]
[null,null,null,null,null,null,null,null,null,null,null,null,null,null,null,null,null,null,null,null,null,null,null,"Ripbor","● op groeikrachtige gronden niet te vroeg planten"]
[null,null,null,null,null,null,null,null,null,null,null,null,null,null,null,null,null,null,null,null,null,null,null,"Ripbor","● matig bemesten"]
[null,null,null,null,null,null,null,null,null,null,null,null,null,null,null,null,null,null,null,null,null,null,null,"Ripbor","● biologisch"]
[null,null,null,null,null,null,null,null,null,null,null,null,null,null,null,null,null,null,null,null,null,null,null,"Ripbor"]
[null,null,null,null,null,null,null,null,null,null,null,null,null,null,null,null,null,null,null,null,null,null,null,"Ripbor","Groeidagen: 120"]
[null,null,null,null,null,null,null,null,null,null,null,null,null,null,null,null,null,null,null,null,null,null,null,"Ripbor","Oogsten: september - eind maart"]
[null,null,null,null,null,null,null,null,null,null,null,null,null,null,null,null,null,null,null,null,null,null,null,"Ripbor","Opmerking: nazomer, herfst en winter. Sterk op splijtkoppen"]
[]
[]
[]
[null,"Boerenkool"]
[]
[null,null,null,null,"Gewasinformatie"]
[]
[null,null,null,null,"Wij hebben een aanbod van een sterk ras boerenkool, dat uitstekend aansluit bij de wensen van de verse markt en de industrie. Boerenkool is vooral bekend als groente voor de herfst en winter. Dit winterharde gewas kan geoogst worden als de meeste andere groenten niet meer op het veld staan."]
[]
[]
[]
[null,null,null,null,"Ras","Groeidagen","Oogsten","Opmerking"]
[null,null,null,null,"Ripbor",120,"september - eind maart","Nazomer, herfst en winter. Sterk op splijtkoppen"]
[]
[]
[]
[]
[]
[]
[null,null,null,null,"Klik op de naam voor meer informatie; je kunt dan ook een bestelling plaatsen."]

{"sheet":"broccoli","index":3,"n_rows":53,"n_cols":25,"rows_kept":53,"cut":false,"hidden":false,"merged":[[18,4,20,10],[16,7,16,10]]}
[null,null,null,null,null,null,null,null,null,null,null,null,null,null,null,null,null,null,null,null,null,null,null,"Batavia","● vroege broccoli voor de voorzomer- en nazomerteelt"]
[null,null,null,null,null,null,null,null,null,null,null,null,null,null,null,null,null,null,null,null,null,null,null,"Batavia","● snelle groeier met fors gewas"]
[null,null,null,null,null,null,null,null,null,null,null,null,null,null,null,null,null,null,null,null,null,null,null,"Batavia","● maakt forse schermen"]
[null,null,null,null,null,null,null,null,null,null,null,null,null,null,null,null,null,null,null,null,null,null,null,"Batavia","● mooie knopkwaliteit: gaat niet snel open"]
[null,null,null,null,null,null,null,null,null,null,null,null,null,null,null,null,null,null,null,null,null,null,null,"Batavia","● middelfijne korrel"]
[null,null,null,null,null,null,null,null,null,null,null,null,null,null,null,null,null,null,null,null,null,null,null,"Batavia","● uniform"]
[null,null,null,null,null,null,null,null,null,null,null,null,null,null,null,null,null,null,null,null,null,null,null,"Batavia","● gevoelig voor harteloosheid; niet te vroeg zaaien"]
[null,null,null,null,null,null,null,null,null,null,null,null,null,null,null,null,null,null,null,null,null,null,null,"Batavia","● biologisch"]
[null,null,null,null,null,null,null,null,null,null,null,null,null,null,null,null,null,null,null,null,null,null,null,"Batavia"]
[null,null,null,null,null,null,null,null,null,null,null,null,null,null,null,null,null,null,null,null,null,null,null,"Batavia","Groeidagen: 60-70"]
[null,null,null,null,null,null,null,null,null,null,null,null,null,null,null,null,null,null,null,null,null,null,null,"Batavia","Plantweek: 14-19"]
[null,null,null,null,null,null,null,null,null,null,null,null,null,null,null,null,null,null,null,null,null,null,null,"Batavia","Opmerking: snelle groeier met fors gewas"]
[null,null,null,null,null,null,null,null,null,null,null,null,null,null,null,null,null,null,null,null,null,null,null,"Belstar","● broccoli voor zomer- en herfstteelt "]
[null,null,null,null,null,null,null,null,null,null,null,null,null,null,null,null,null,null,null,null,null,null,null,"Belstar","● zware schermen en middelfijne knoppen "]
[null,"Broccoli",null,null,null,null,null,null,null,null,null,null,null,null,null,null,null,null,null,null,null,null,null,"Belstar","● sterk tegen doorwas "]
[null,null,null,null,null,null,null,null,null,null,null,null,null,null,null,null,null,null,null,null,null,null,null,"Belstar","● uniform"]
[null,null,null,null,"Gewasinformatie",null,null,"Biologische teelt broccoli",null,null,null,null,null,null,null,null,null,null,null,null,null,null,null,"Belstar","● sterk tegen meeldauw"]
[null,null,null,null,null,null,null,null,null,null,null,null,null,null,null,null,null,null,null,null,null,null,null,"Belstar","● biologisch"]
[null,null,null,null,"In ons assortiment vindt u groeikrachtige broccolirassen voor alle teeltseizoenen. Broccoli is een echt wereldproduct. Het is daarom niet vreemd dat wij onze rassen intensief testen in alle klimaatzones. Schermkwaliteit, kleur, gezondheid op het veld en uniforme oogstrijpheid zijn belangrijke beoordelingscriteria.",null,null,null,null,null,null,null,null,null,null,null,null,null,null,null,null,null,null,"Belstar"]
[null,null,null,null,null,null,null,null,null,null,null,null,null,null,null,null,null,null,null,null,null,null,null,"Belstar","Groeidagen: 68-80"]
[null,null,null,null,null,null,null,null,null,null,null,null,null,null,null,null,null,null,null,null,null,null,null,"Belstar","Plantweek: 27-31"]
[null,null,null,null,null,null,null,null,null,null,null,null,null,null,null,null,null,null,null,null,null,null,null,"Belstar","Opmerking: voor de herfstteelt; zeer productief en met middelfijne korrel"]
[null,null,null,null,"Ras","Groeidagen","Plantweek ","Opmerking",null,null,null,null,null,null,null,null,null,null,null,null,null,null,null,"Covina","● broccoli voor zomer- en herfstteelt"]
[null,null,null,null,"Batavia","60-70 ","14-19","snelle groeier met fors gewas",null,null,null,null,null,null,null,null,null,null,null,null,null,null,null,"Covina","● makkelijke groeier (op groeikrachtige gronden matig bemesten)"]
[null,null,null,null,"Belstar","68-80 ","27-31","voor de herfstteelt, zeer productief met middelfijne korrel",null,null,null,null,null,null,null,null,null,null,null,null,null,null,null,"Covina","● open gewas"]
[null,null,null,null,"Covina","70-80","13-27","oogst vanaf week 23",null,null,null,null,null,null,null,null,null,null,null,null,null,null,null,"Covina","● uniform"]
[null,null,null,null,"Fiesta","70-80","14-24","voor zomer- en herfstteelt",null,null,null,null,null,null,null,null,null,null,null,null,null,null,null,"Covina","● vast rond scherm met hoog soortelijk gewicht"]
[null,null,null,null,"Malibu","73-83","11-15 en 28-31","oogst vanaf week 19",null,null,null,null,null,null,null,null,null,null,null,null,null,null,null,"Covina","● scherm met (middel)fijne bloemknoppen"]
[null,null,null,null,null,null,null,null,null,null,null,null,null,null,null,null,null,null,null,null,null,null,null,"Covina","● goede houdbaarheid na de oogst"]
[null,null,null,null,null,null,null,null,null,null,null,null,null,null,null,null,null,null,null,null,null,null,null,"Covina","● sterk tegen meeldauw"]
[null,null,null,null,"Klik op de naam voor meer informatie; je kunt dan ook een bestelling plaatsen.",null,null,null,null,null,null,null,null,null,null,null,null,null,null,null,null,null,null,"Covina","● niet biologisch"]
[null,null,null,null,null,null,null,null,null,null,null,null,null,null,null,null,null,null,null,null,null,null,null,"Covina"]
[null,null,null,null,null,null,null,null,null,null,null,null,null,null,null,null,null,null,null,null,null,null,null,"Covina","Plantweek: 13-27"]
[null,null,null,null,null,null,null,null,null,null,null,null,null,null,null,null,null,null,null,null,null,null,null,"Covina","Groeidagen: 70-80"]
[null,null,null,null,null,null,null,null,null,null,null,null,null,null,null,null,null,null,null,null,null,null,null,"Covina","Oogstweek: vanaf week 23"]
[null,null,null,null,null,null,null,null,null,null,null,null,null,null,null,null,null,null,null,null,null,null,null,"Fiesta","● zomer- en herfstbroccoli "]
[null,null,null,null,null,null,null,null,null,null,null,null,null,null,null,null,null,null,null,null,null,null,null,"Fiesta","● productief, uniform ras "]
[null,null,null,null,null,null,null,null,null,null,null,null,null,null,null,null,null,null,null,null,null,null,null,"Fiesta","● sterk tegen doorwas "]
[null,null,null,null,null,null,null,null,null,null,null,null,null,null,null,null,null,null,null,null,null,null,null,"Fiesta","● sterk tegen meeldauw"]
[null,null,null,null,null,null,null,null,null,null,null,null,null,null,null,null,null,null,null,null,null,null,null,"Fiesta","● biologisch"]
[null,null,null,null,null,null,null,null,null,null,null,null,null,null,null,null,null,null,null,null,null,null,null,"Fiesta"]
[null,null,null,null,null,null,null,null,null,null,null,null,null,null,null,null,null,null,null,null,null,null,null,"Fiesta","Groeidagen: 70-80"]
[null,null,null,null,null,null,null,null,null,null,null,null,null,null,null,null,null,null,null,null,null,null,null,"Fiesta","Plantweek: 14-24"]
[null,null,null,null,null,null,null,null,null,null,null,null,null,null,null,null,null,null,null,null,null,null,null,"Fiesta","Opmerking: voor zomer- en herfstteelt"]
[null,null,null,null,null,null,null,null,null,null,null,null,null,null,null,null,null,null,null,null,null,null,null,"Malibu","● vroege broccoli"]
[null,null,null,null,null,null,null,null,null,null,null,null,null,null,null,null,null,null,null,null,null,null,null,"Malibu","● snelle groeier"]
[null,null,null,null,null,null,null,null,null,null,null,null,null,null,null,null,null,null,null,null,null,null,null,"Malibu","● uniform gewas"]
[null,null,null,null,null,null,null,null,null,null,null,null,null,null,null,null,null,null,null,null,null,null,null,"Malibu","● mooi glad rond scherm"]
[null,null,null,null,null,null,null,null,null,null,null,null,null,null,null,null,null,null,null,null,null,null,null,"Malibu","● niet biologisch"]
[null,null,null,null,null,null,null,null,null,null,null,null,null,null,null,null,null,null,null,null,null,null,null,"Malibu"]
[null,null,null,null,null,null,null,null,null,null,null,null,null,null,null,null,null,null,null,null,null,null,null,"Malibu","Plantweek: 11-15 en 28-31"]
[null,null,null,null,null,null,null,null,null,null,null,null,null,null,null,null,null,null,null,null,null,null,null,"Malibu","Groeidagen: 73-83"]
[null,null,null,null,null,null,null,null,null,null,null,null,null,null,null,null,null,null,null,null,null,null,null,"Malibu","Oogstweek: vanaf week 19"]

{"sheet":"chinese kool","index":4,"n_rows":31,"n_cols":41,"rows_kept":31,"cut":false,"hidden":false,"merged":[[26,6,27,6],[26,7,27,7],[26,8,27,8],[16,7,16,10],[18,4,21,10],[24,6,25,6],[24,7,25,7],[24,8,25,8]]}
[null,null,null,null,null,null,null,null,null,null,null,null,null,null,null,null,null,null,null,null,null,null,null,"Bilko","● middellange cilindrische kool"]
[null,null,null,null,null,null,null,null,null,null,null,null,null,null,null,null,null,null,null,null,null,null,null,"Bilko","● gemakkelijk oogstbaar"]
[null,null,null,null,null,null,null,null,null,null,null,null,null,null,null,null,null,null,null,null,null,null,null,"Bilko","● donkergroen gewas"]
[null,null,null,null,null,null,null,null,null,null,null,null,null,null,null,null,null,null,null,null,null,null,null,"Bilko","● ultieme bewaarkool"]
[null,null,null,null,null,null,null,null,null,null,null,null,null,null,null,null,null,null,null,null,null,null,null,"Bilko","● hoogresistent tegen knolvoet fysio 0, 1 en 3",null,null,null,null,null,null,null,null,null,null,null,null,null,null,null,"Bloemkool"]
[null,null,null,null,null,null,null,null,null,null,null,null,null,null,null,null,null,null,null,null,null,null,null,"Bilko","   (HR: Plasmodiophora brassicae: 0, 1, 3)"]
[null,null,null,null,null,null,null,null,null,null,null,null,null,null,null,null,null,null,null,null,null,null,null,"Bilko","● biologisch"]
[null,null,null,null,null,null,null,null,null,null,null,null,null,null,null,null,null,null,null,null,null,null,null,"Bilko"]
[null,null,null,null,null,null,null,null,null,null,null,null,null,null,null,null,null,null,null,null,null,null,null,"Bilko","Groeidagen: 65-75"]
[null,null,null,null,null,null,null,null,null,null,null,null,null,null,null,null,null,null,null,null,null,null,null,"Bilko","Oogsten: eind augustus - begin november"]
[null,null,null,null,null,null,null,null,null,null,null,null,null,null,null,null,null,null,null,null,null,null,null,"Bilko","Plantperiode: half juni - eind augustus"]
[null,null,null,null,null,null,null,null,null,null,null,null,null,null,null,null,null,null,null,null,null,null,null,"Bilko","Bewaren: half oktober - begin maart"]
[null,null,null,null,null,null,null,null,null,null,null,null,null,null,null,null,null,null,null,null,null,null,null,"Emiko","● middellange cilindrische kool"]
[null,null,null,null,null,null,null,null,null,null,null,null,null,null,null,null,null,null,null,null,null,null,null,"Emiko","● sterk tegen toprand"]
[null,"Chinese kool",null,null,null,null,null,null,null,null,null,null,null,null,null,null,null,null,null,null,null,null,null,"Emiko","● gemakkelijk oogstbaar"]
[null,null,null,null,null,null,null,null,null,null,null,null,null,null,null,null,null,null,null,null,null,null,null,"Emiko","● donkergroen gewas"]
[null,null,null,null,"Gewasinformatie",null,null,null,null,null,null,null,null,null,null,null,null,null,null,null,null,null,null,"Emiko","● bewaarbaar"]
[null,null,null,null,null,null,null,null,null,null,null,null,null,null,null,null,null,null,null,null,null,null,null,"Emiko","● hoogresistent tegen knolvoet fysio 0, 1 en 3"]
[null,null,null,null,"Bejo heeft vooral in de kortere Chinese kool een sterk assortiment, maar onze productontwikkeling is gericht op alle veelvoorkomende types. Productiviteit, ziekteresistentie en een mooie interne en externe kleur hebben hoge prioriteit. We blijven bovendien steeds werken aan nog beter bewaarbare rassen. De zachte smaak en opvallende presentatie maken van Chinese kool een aantrekkelijke groente voor gebruik in de wok",null,null,null,null,null,null,null,null,null,null,null,null,null,null,null,null,null,null,"Emiko","   (HR: Plasmodiophora brassicae: 0, 1, 3)"]
[null,null,null,null,null,null,null,null,null,null,null,null,null,null,null,null,null,null,null,null,null,null,null,"Emiko"]
[null,null,null,null,null,null,null,null,null,null,null,null,null,null,null,null,null,null,null,null,null,null,null,"Emiko","Groeidagen: 50-70"]
[null,null,null,null,null,null,null,null,null,null,null,null,null,null,null,null,null,null,null,null,null,null,null,"Emiko","Oogsten: eind juni - begin november"]
[null,null,null,null,null,null,null,null,null,null,null,null,null,null,null,null,null,null,null,null,null,null,null,"Emiko","Plantperiode: begin mei - eind augustus"]
[null,null,null,null,"Ras","Groeidagen","Oogsten","Plantperiode","Bewaren",null,null,null,null,null,null,null,null,null,null,null,null,null,null,"Emiko","Bewaren: half oktober - half februari"]
[null,null,null,null,"Bilko","65-75","eind augustus - begin november","half juni - eind augustus","half oktober - begin maart"]
[]
[null,null,null,null,"Emiko","50-70","eind juni - begin november","begin mei - eind augustus","half oktober - half februari"]
[]
[]
[]
[null,null,null,null,"Klik op de naam voor meer informatie; je kunt dan ook een bestelling plaatsen."]

{"sheet":"bestelling","index":5,"n_rows":22,"n_cols":9,"rows_kept":22,"cut":false,"hidden":false,"merged":[[2,3,2,4],[3,3,3,4]]}
[]
[]
[null,null,"Kandidaatnaam:"]
[null,null,"Kandidaatnummer:"]
[]
[]
[null,null,"groente","ras","verpakkingseenheid","prijs","aantal","totaal"]
[null,null,null,null,null,null,null,{"$f":"IF(G8=\"\",\"\",G8*F8)","v":""},"wis"]
[null,null,null,null,null,null,null,{"$f":"IF(G9=\"\",\"\",G9*F9)","v":""},"wis"]
[null,null,null,null,null,null,null,"","wis"]
[null,null,null,null,null,null,null,"","wis"]
[null,null,null,null,null,null,null,"","wis"]
[null,null,null,null,null,null,null,"","wis"]
[null,null,null,null,null,null,null,"","wis"]
[null,null,null,null,null,null,null,"","wis"]
[null,null,null,null,null,null,null,"","wis"]
[null,null,null,null,null,null,null,"","wis"]
[null,null,null,null,null,null,null,"","wis"]
[null,null,null,null,null,null,null,"","wis"]
[null,null,null,null,null,null,null,"","wis"]
[null,null,null,null,null,null,null,"","wis"]
[null,null,null,null,null,null,"totaal:",{"$f":"SUM(H8:H21)","v":0}]